bitfinex/quotes_ETHUSD_20230703
["timestamp","ask_amount","ask_price","bid_price","bid_amount"]
[1688405942338,8.93962286,1967.4,1967.3,6.1]
[1688405945633,14.02247286,1967.4,1967.3,6.1]
[1688405947610,8.93962286,1967.4,1967.3,6.1]
[1688405947835,7.64163816,1967.4,1967.3,6.1]
[1688405948599,7.64163816,1967.4,1967.3,11.1831]
[1688405952669,0.25587882,1967.5,1967.3,16.2662]
[1688405952807,2.55878816,1967.4,1967.3,16.2662]
[1688405953013,2.55878816,1967.4,1967.3,6.1]
[1688405953014,12.72448816,1967.4,1967.3,6.1]
[1688405953214,15.26590816,1967.4,1967.3,6.1]
[1688405959976,12.72448816,1967.4,1967.3,6.1]
[1688405960178,14.38026798,1967.4,1967.3,6.1]
[1688405964486,12.72448816,1967.4,1967.3,6.1]
[1688405975188,15.26590816,1967.4,1967.3,6.1]
[1688405990389,12.72448816,1967.4,1967.3,6.1]
[1688405993340,7.64163816,1967.4,1967.3,6.1]
[1688405993632,2.55878816,1967.4,1967.3,11.1831]
[1688405993792,7.64163816,1967.4,1967.3,6.1]
[1688405994306,5.08248,1967.6,1967.3,21.730388]
[1688405994497,5.08248,1967.6,1967.3,19.188838]
[1688405994839,2.55878816,1967.5,1967.3,19.188838]
[1688405995020,2.55878816,1967.5,1967.3,17.892838]
[1688405995994,7.64137816,1967.5,1967.3,17.892838]
[1688405998935,2.55878816,1967.5,1967.3,17.892838]
[1688405999148,2.55878816,1967.5,1967.3,19.178838]
[1688405999295,2.55878816,1967.5,1967.3,17.892838]
[1688405999500,7.64138816,1967.5,1967.3,17.892838]
[1688406001096,2.55878816,1967.5,1967.3,17.892838]
[1688406004600,2.55878816,1967.5,1967.3,18.30193164]
[1688406004843,0.09291819,1967.8,1967.4,1.83019316]
[1688406005009,2.55878816,1967.7,1967.6,1.296]
[1688406005384,0.09291819,1967.8,1967.6,11.46055]
[1688406005596,0.09291819,1967.8,1967.6,12.70571]
[1688406006494,0.09291819,1967.8,1967.7,13.99117]
[1688406006691,0.09291819,1967.8,1967.7,15.644403]
[1688406006844,0.09291819,1967.8,1967.7,21.009403]
[1688406007048,1.819e-05,1967.8,1967.7,21.489403]
[1688406007288,1.819e-05,1967.8,1967.7,26.57966743]
[1688406007586,1.819e-05,1967.8,1967.7,26.571473]
[1688406008168,1.819e-05,1967.8,1967.7,26.57811314]
[1688406008350,0.0598439,1968.0,1967.7,30.88480991]
[1688406008549,0.0598439,1968.0,1967.9,5.365]
[1688406008744,0.0598439,1968.0,1967.9,22.38984781]
[1688406008990,0.0598439,1968.0,1967.9,25.39797525]
[1688406009203,0.0598439,1968.0,1967.9,25.41289406]
[1688406009402,0.0598439,1968.0,1967.9,20.04789406]
[1688406009605,0.0598439,1968.0,1967.9,21.19453206]
[1688406009910,0.0598439,1968.0,1967.9,14.36176206]
[1688406010213,0.0598439,1968.0,1967.9,5.08155]
[1688406010382,0.0598439,1968.0,1967.9,10.1631]
[1688406011683,0.0598439,1968.0,1967.9,5.08155]
[1688406011905,0.0598439,1968.0,1967.9,10.1631]
[1688406014920,15.32188206,1968.0,1967.7,5.08206]
[1688406015211,4.09097637,1967.9,1967.8,0.00831608]
[1688406015512,16.79484637,1967.9,1967.4,10.56473957]
[1688406016425,16.79484637,1967.9,1967.4,5.48188957]
[1688406016878,16.79484637,1967.9,1967.4,0.39920957]
[1688406017080,16.79484637,1967.9,1967.4,5.08277]
[1688406017280,1.67948464,1967.8,1967.4,5.08277]
[1688406017501,15.26407816,1967.7,1967.4,5.08277]
[1688406017702,15.26407816,1967.7,1967.3,11.18294]
[1688406017901,15.26407816,1967.7,1967.3,16.2659]
[1688406019522,15.26407816,1967.7,1967.3,11.18294]
[1688406019689,5.08259,1967.5,1967.3,16.26604]
[1688406019876,5.08259,1967.5,1967.3,11.18294]
[1688406020079,10.16518,1967.5,1967.3,11.18294]
[1688406020345,5.08259,1967.5,1967.3,11.18294]
[1688406020490,5.08259,1967.5,1967.3,16.26604]
[1688406020813,10.16496,1967.6,1967.3,16.26604]
[1688406021117,12.72374816,1967.6,1967.3,16.26604]
[1688406023706,12.72374816,1967.6,1967.3,11.18294]
[1688406024103,14.25022798,1967.6,1967.3,11.18294]
[1688406025194,16.79138798,1967.6,1967.3,11.18294]
[1688406025395,12.72374816,1967.6,1967.3,16.26604]
[1688406026019,12.72374816,1967.6,1967.3,11.18294]
[1688406028020,15.26490816,1967.6,1967.3,11.18294]
[1688406028336,12.70712,1967.4,1967.3,6.1]
[1688406028649,15.26590816,1967.4,1967.3,6.1]
[1688406032548,21.64575816,1967.4,1967.3,6.1]
[1688406033245,20.34875816,1967.4,1967.3,6.1]
[1688406036142,21.64575816,1967.4,1967.3,6.1]
[1688406036348,24.06446798,1967.4,1967.3,6.1]
[1688406037172,24.06446798,1967.4,1967.3,3.66953125]
[1688406037478,24.06446798,1967.4,1966.1,5.08599]
[1688406037479,0.5,1967.0,1966.1,5.08599]
[1688406037771,15.25374,1966.8,1966.0,10.17265]
[1688406037973,15.25374,1966.8,1966.0,5.08645]
[1688406037974,2.55878816,1966.7,1966.0,5.08645]
[1688406038173,15.2556,1966.5,1966.0,5.08642]
[1688406038373,2.55878816,1966.4,1966.0,5.08642]
[1688406038537,10.17148,1966.3,1966.0,5.08642]
[1688406038739,12.73026816,1966.3,1966.0,5.08642]
[1688406038937,12.73026816,1966.3,1966.0,10.17288]
[1688406040064,12.73026816,1966.3,1966.0,5.08642]
[1688406040878,2.55878816,1966.2,1965.9,5.48380961]
[1688406041171,2.55878816,1966.2,1965.9,0.39718961]
[1688406041172,10.17242,1966.1,1965.9,0.39718961]
[1688406041350,5.08598,1966.2,1965.9,12.71679]
[1688406041547,7.64476816,1966.2,1965.9,12.71679]
[1688406041753,12.73082816,1966.2,1965.9,10.17343]
[1688406042991,12.73082816,1966.2,1965.9,11.445119]
[1688406043195,12.73082816,1966.2,1965.9,11.46147088]
[1688406043355,10.17204,1966.2,1965.9,11.46147088]
[1688406043556,5.08598,1966.2,1965.9,12.94483088]
[1688406043752,10.17193,1966.2,1965.9,10.40147088]
[1688406044005,10.1719,1966.2,1966.0,1.04014709]
[1688406044796,5.0857,1966.3,1966.0,13.75629709]
[1688406044981,5.0857,1966.3,1966.0,15.05329709]
[1688406045600,10.17147,1966.3,1966.0,12.51006709]
[1688406047803,10.17147,1966.3,1966.0,6.12660709]
[1688406049595,12.71431,1966.3,1966.0,6.12660709]
[1688406053420,12.60431,1966.3,1966.0,6.12660709]
[1688406054111,12.60431,1966.3,1966.0,5.08646]
[1688406054328,12.60431,1966.3,1965.9,5.10294188]
[1688406056957,12.60431,1966.3,1965.9,6.39894188]
[1688406062443,15.16309816,1966.3,1965.9,6.39894188]
[1688406062654,15.16309816,1966.3,1965.9,8.89894188]
[1688406062834,17.16325998,1966.3,1965.9,8.89894188]
[1688406064586,2.55878816,1966.2,1965.9,2.5]
[1688406064743,3.05878816,1966.2,1965.9,2.5]
[1688406065068,20.34483,1966.1,1965.9,2.5]
[1688406065285,22.90361816,1966.1,1965.9,2.5]
[1688406065503,16.30351182,1966.0,1965.9,2.5]
[1688406065639,18.86229998,1966.0,1965.9,2.5]
[1688406066185,0.5,1965.8,1965.2,0.12569067]
[1688406066335,22.90844816,1965.7,1965.2,0.41190689]
[1688406066529,22.90844816,1965.7,1964.9,6.37319]
[1688406066530,22.90844816,1965.7,1964.9,7.37392821]
[1688406066736,2.29084482,1965.6,1964.9,12.46313821]
[1688406066936,12.7201,1965.4,1964.8,2.8025]
[1688406067162,2.55878816,1965.3,1964.9,5.08915]
[1688406067437,10.17718,1965.2,1964.9,10.17846]
[1688406068058,10.17718,1965.2,1964.9,5.08915]
[1688406068460,10.17718,1965.2,1964.9,10.17846]
[1688406073171,10.17718,1965.2,1964.9,5.08915]
[1688406074253,10.17718,1965.2,1964.9,10.17846]
[1688406076490,5.10300816,1965.3,1964.9,10.17846]
[1688406076491,12.73564816,1965.3,1964.9,12.72311]
[1688406076680,12.73569816,1965.3,1964.9,14.01711]
[1688406076855,12.73569816,1965.3,1964.9,16.51711]
[1688406078200,5.08842,1965.3,1965.0,1.292]
[1688406078373,5.08842,1965.3,1965.1,11.46358]
[1688406079071,5.08842,1965.3,1965.1,10.17758]
[1688406080293,6.37889,1965.7,1965.1,11.46158]
[1688406080294,3.8352,1965.7,1965.1,11.46158]
[1688406080462,3.8352,1965.7,1965.3,10.17644]
[1688406080463,7.64642816,1965.6,1965.3,10.17644]
[1688406080910,12.73414816,1965.6,1965.3,10.17644]
[1688406085188,7.64642816,1965.6,1965.3,10.17644]
[1688406087432,12.73414816,1965.6,1965.3,10.17644]
[1688406089431,7.64642816,1965.6,1965.3,10.17644]
[1688406089954,12.73392816,1965.6,1965.3,10.17644]
[1688406090773,12.73392816,1965.6,1965.3,10.57620204]
[1688406091776,7.64628816,1965.6,1965.3,10.57620204]
[1688406092481,5.08741,1965.7,1965.3,13.12034204]
[1688406092690,5.08741,1965.7,1965.3,14.56077624]
[1688406094742,10.17477,1965.7,1965.3,14.56077624]
[1688406095057,10.17477,1965.7,1965.3,13.12034204]
[1688406115832,5.3437,1965.9,1965.4,1.284]
[1688406115833,4.0537,1965.9,1965.4,1.284]
[1688406116034,2.3597,1965.9,1965.5,12.71907]
[1688406116375,2.3597,1965.9,1965.6,0.00625223]
[1688406116580,2.3597,1965.9,1965.7,10.17448]
[1688406118063,5.08656,1966.0,1965.7,10.17448]
[1688406118244,5.08656,1966.0,1965.8,0.005295]
[1688406118245,7.64534816,1966.0,1965.8,0.005295]
[1688406118589,5.08656,1966.0,1965.9,5.08672]
[1688406118879,6.270755,1966.0,1965.9,5.08672]
[1688406119263,6.270755,1966.0,1965.8,10.17374]
[1688406119579,6.270755,1966.0,1965.8,5.08687]
[1688406120387,11.357355,1966.0,1965.8,5.08687]
[1688406122857,11.357355,1966.0,1965.7,10.17423]
[1688406123296,3.69452366,1965.9,1965.4,2.61015943]
[1688406123432,3.69452366,1965.9,1965.4,5.08789]
[1688406123433,11.46522,1965.8,1965.4,5.08789]
[1688406123637,18.73249816,1965.8,1965.4,5.08789]
[1688406124381,2.55878816,1965.7,1965.3,0.93038257]
[1688406124557,10.17552,1965.5,1965.3,0.39976204]
[1688406124761,10.17552,1965.5,1965.3,5.48802204]
[1688406124978,10.17552,1965.5,1965.3,5.08826]
[1688406125584,12.7194,1965.5,1965.2,10.17677]
[1688406125801,10.17552,1965.5,1965.2,10.17677]
[1688406125954,5.08776,1965.5,1965.2,10.17677]
[1688406126283,5.87650188,1965.5,1965.2,10.70739053]
[1688406126488,2.55878816,1965.4,1965.1,0.53062053]
[1688406126692,10.17656,1965.3,1965.1,5.61931053]
[1688406126839,9.30420698,1965.3,1965.1,10.57904663]
[1688406127192,4.21592698,1965.3,1965.1,11.10966716]
[1688406127543,7.64708816,1965.3,1965.1,11.10966716]
[1688406127869,7.64708816,1965.3,1965.1,5.49025663]
[1688406128047,7.64708816,1965.3,1965.1,10.57904663]
[1688406128462,2.55878816,1965.3,1965.1,10.57904663]
[1688406129708,7.64710816,1965.3,1965.1,5.49025663]
[1688406130008,8.92063198,1965.3,1965.1,5.49025663]
[1688406131082,8.92063198,1965.3,1965.1,10.57904663]
[1688406131276,7.64710816,1965.3,1965.1,10.57904663]
[1688406131620,7.64710816,1965.3,1965.1,10.17748]
[1688406132768,2.55878816,1965.3,1965.1,10.17748]
[1688406133016,5.08813,1965.4,1965.1,12.72187]
[1688406133174,7.64691816,1965.4,1965.1,12.72187]
[1688406135316,8.62619321,1965.4,1965.1,12.72187]
[1688406140880,13.71433321,1965.4,1965.1,12.72187]
[1688406147440,12.73505816,1965.4,1965.1,12.72187]
[1688406150240,5.08813,1965.4,1965.1,12.72187]
[1688406150421,2.2758,1965.5,1965.1,12.72187]
[1688406150758,4.83458816,1965.5,1965.1,12.72187]
[1688406152824,9.92237816,1965.5,1965.1,12.72187]
[1688406153026,9.92237816,1965.5,1965.1,14.62389732]
[1688406159553,2.2758,1965.5,1965.1,14.62389732]
[1688406161250,1.5835,1965.8,1965.1,14.62389732]
[1688406161251,6.67058,1965.8,1965.1,14.62389732]
[1688406161422,4.78028816,1965.7,1965.2,1.30702236]
[1688406161620,4.78028816,1965.7,1965.3,12.72037]
[1688406161927,2.2215,1965.7,1965.5,5.08776]
[1688406162279,8.197968,1965.7,1965.5,5.08776]
[1688406163056,8.197968,1965.7,1965.5,10.17552]
[1688406163456,8.197968,1965.7,1965.5,5.08776]
[1688406163862,8.197968,1965.7,1965.3,5.08818]
[1688406163863,15.84401616,1965.7,1965.3,5.08818]
[1688406164062,18.38763616,1965.7,1965.3,5.08818]
[1688406164293,1.83876362,1965.6,1965.3,5.08818]
[1688406164610,5.08776,1965.5,1965.3,5.08818]
[1688406171769,5.08776,1965.5,1965.3,10.17646]
[1688406177035,1.5835,1965.8,1965.4,0.02008927]
[1688406177339,2.55878816,1965.8,1965.5,12.71927]
[1688406177889,2.55878816,1965.8,1965.6,0.00775885]
[1688406178131,2.55878816,1965.8,1965.7,5.08724]
[1688406179095,2.55878816,1965.8,1965.7,5.09496695]
[1688406179299,2.55878816,1965.8,1965.7,5.08724]
[1688406179904,2.55878816,1965.8,1965.7,5.09457352]
[1688406180695,2.55878816,1965.8,1965.7,5.08724]
[1688406182692,2.55878816,1965.8,1965.7,5.09617593]
[1688406183391,2.55878816,1965.8,1965.7,5.08724]
[1688406183942,2.55878816,1965.8,1965.7,5.0941707]
[1688406184313,2.55878816,1965.8,1965.7,5.08724]
[1688406184692,2.55878816,1965.8,1965.7,5.09260515]
[1688406185207,6.66583,1965.9,1965.7,10.17448]
[1688406185434,9.22461816,1965.9,1965.7,10.17448]
[1688406185998,9.22461816,1965.9,1965.7,5.08724]
[1688406186150,7.64561816,1965.9,1965.7,5.08724]
[1688406188151,7.64561816,1965.9,1965.8,0.00860434]
[1688406189361,7.64561816,1965.9,1965.7,10.17448]
[1688406189783,7.64561816,1965.9,1965.8,0.00613929]
[1688406190279,7.64561816,1965.9,1965.7,10.17448]
[1688406190440,7.64561816,1965.9,1965.8,0.007237]
[1688406190623,7.64561816,1965.9,1965.7,10.17448]
[1688406191229,7.64561816,1965.9,1965.8,0.00601788]
[1688406191866,5.08683,1965.9,1965.8,5.09299788]
[1688406192646,12.53185,1966.0,1965.8,5.09299788]
[1688406192853,15.09063816,1966.0,1965.8,5.09299788]
[1688406193054,10.00399816,1966.0,1965.8,5.09299788]
[1688406193369,15.09058816,1966.0,1965.8,5.08698]
[1688406193659,15.09058816,1966.0,1965.9,0.00803931]
[1688406195372,17.06590998,1966.0,1965.9,0.00803931]
[1688406195573,17.06590998,1966.0,1965.8,0.01142651]
[1688406198051,17.06590998,1966.0,1965.7,5.08709]
[1688406198386,17.06590998,1966.0,1965.8,0.0110759]
[1688406198669,17.06590998,1966.0,1965.7,5.08709]
[1688406198873,17.06590998,1966.0,1965.8,0.01213699]
[1688406204373,17.06590998,1966.0,1965.8,5.09908699]
[1688406204547,15.09058816,1966.0,1965.8,5.09908699]
[1688406204755,10.00397816,1966.0,1965.8,10.18606699]
[1688406204954,10.00397816,1966.0,1965.8,5.09908699]
[1688406205271,15.09043816,1966.0,1965.8,5.08695]
[1688406207296,10.00384816,1966.0,1965.8,5.08695]
[1688406209089,15.09030816,1966.0,1965.8,5.08695]
[1688406214716,15.09030816,1966.0,1965.7,5.08712]
[1688406215014,19.55883198,1966.0,1965.7,0.00609498]
[1688406215785,19.55883198,1966.0,1965.6,10.57501156]
[1688406216212,19.55883198,1966.0,1965.7,0.00846074]
[1688406216417,19.55883198,1966.0,1965.6,10.57501156]
[1688406217422,19.55883198,1966.0,1965.7,0.00583131]
[1688406217568,19.55883198,1966.0,1965.6,10.57501156]
[1688406218821,19.55883198,1966.0,1965.7,0.00540449]
[1688406219120,19.55883198,1966.0,1965.7,0.00539359]
[1688406219272,19.55883198,1966.0,1965.6,10.57501156]
[1688406222148,19.55883198,1966.0,1965.7,0.00659299]
[1688406222319,19.55883198,1966.0,1965.7,5.09383299]
[1688406222519,19.55883198,1966.0,1965.7,5.08724]
[1688406225350,2.55878816,1965.9,1965.6,5.48763156]
[1688406225655,10.17396,1965.8,1965.6,5.48777156]
[1688406226027,5.08698,1965.8,1965.6,5.48777156]
[1688406226407,5.08698,1965.8,1965.6,10.57527156]
[1688406233275,7.64563816,1965.9,1965.6,10.57527156]
[1688406235565,7.4452,1966.0,1965.6,14.43093472]
[1688406235761,5.0866,1966.0,1965.6,14.43093472]
[1688406236025,5.0866,1966.0,1965.7,0.00620049]
[1688406236232,5.0866,1966.0,1965.8,10.17396]
[1688406237135,10.17325,1966.0,1965.8,5.08698]
[1688406241082,10.17325,1966.0,1965.7,5.08711]
[1688406241405,16.54690416,1966.0,1965.6,7.11587156]
[1688406241593,18.23230416,1966.0,1965.6,7.11587156]
[1688406243914,16.9404194,1966.0,1965.6,7.11587156]
[1688406248928,16.9404194,1966.0,1965.6,12.20337156]
[1688406249865,16.9404194,1966.0,1965.6,10.57517156]
[1688406271626,16.9404194,1966.0,1965.6,5.48767156]
[1688406271798,16.9404194,1966.0,1965.6,5.48781156]
[1688406272119,10.17396,1965.8,1965.6,5.48781156]
[1688406274518,5.08698,1965.8,1965.6,5.48781156]
[1688406275023,5.08698,1965.8,1965.6,10.57531156]
[1688406277048,5.08698,1965.8,1965.6,5.48781156]
[1688406278755,5.08698,1965.8,1965.6,10.57531156]
[1688406279048,2.3054,1965.9,1965.6,0.40031156]
[1688406279355,5.08698,1965.8,1965.6,10.175]
[1688406284862,5.08698,1965.8,1965.6,5.0875]
[1688406287054,5.08698,1965.8,1965.6,10.175]
[1688406289879,5.08698,1965.8,1965.6,5.0875]
[1688406290049,5.08698,1965.8,1965.6,10.175]
[1688406290781,5.08698,1965.8,1965.6,5.0875]
[1688406290950,5.08698,1965.8,1965.6,10.175]
[1688406291884,5.08698,1965.8,1965.6,5.0875]
[1688406293860,5.08698,1965.8,1965.6,10.175]
[1688406294735,5.08698,1965.8,1965.6,5.0875]
[1688406294934,5.08698,1965.8,1965.6,10.175]
[1688406296771,5.08698,1965.8,1965.6,5.0875]
[1688406296982,5.08698,1965.8,1965.6,10.175]
[1688406298892,5.08698,1965.8,1965.6,5.0875]
[1688406300255,12.73274816,1965.8,1965.5,5.50068152]
[1688406300460,14.49089898,1965.8,1965.5,10.58830152]
[1688406305796,2.55878816,1965.7,1965.5,0.41314152]
[1688406305985,12.71875,1965.6,1965.5,0.41314152]
[1688406306185,15.27753816,1965.6,1965.3,5.61881053]
[1688406306387,16.80529198,1965.6,1965.3,10.17647]
[1688406306605,14.26154198,1965.6,1965.3,10.57596574]
[1688406306841,14.26154198,1965.6,1965.3,5.48768574]
[1688406307223,16.80529198,1965.6,1965.3,5.48768574]
[1688406307511,14.26154198,1965.6,1965.3,5.48768574]
[1688406307769,3.98494236,1965.5,1965.3,5.48768574]
[1688406307920,9.07279236,1965.5,1965.3,5.48768574]
[1688406308117,16.70452236,1965.5,1965.1,5.08867]
[1688406308357,16.70452236,1965.5,1965.1,5.08876]
[1688406308758,16.70452236,1965.5,1964.7,0.53062053]
[1688406308759,2.55878816,1965.3,1964.7,0.53062053]
[1688406309062,2.55878816,1965.3,1964.5,2.036]
[1688406309063,15.52203882,1965.2,1964.5,12.21353053]
[1688406309230,15.52203882,1965.2,1964.6,5.09007]
[1688406309231,12.72295,1965.0,1964.6,5.09007]
[1688406309431,5.08957,1964.8,1964.6,5.09007]
[1688406309647,12.73776816,1964.9,1964.6,5.09007]
[1688406310048,7.64822816,1964.9,1964.6,5.08991]
[1688406310245,5.85459282,1964.8,1964.6,5.08991]
[1688406311322,10.94436282,1964.8,1964.6,5.08991]
[1688406311619,5.0892,1965.0,1964.6,12.72504]
[1688406311860,5.08932,1964.9,1964.6,12.72504]
[1688406312030,5.08983,1964.7,1964.5,5.50528362]
[1688406312235,5.08983,1964.7,1964.5,10.59540362]
[1688406313666,7.64848816,1964.8,1964.5,10.59540362]
[1688406314026,14.26643798,1964.8,1964.5,13.14057362]
[1688406315065,14.26643798,1964.8,1964.5,10.59540362]
[1688406315451,2.55878816,1964.7,1964.5,0.41510362]
[1688406315659,5.09009,1964.6,1964.5,0.41510362]
[1688406315874,5.09009,1964.6,1964.4,5.09045]
[1688406316573,12.73873816,1964.7,1964.4,10.18106]
[1688406317636,7.64873816,1964.7,1964.4,10.18106]
[1688406318757,2.55878816,1964.7,1964.4,12.72636]
[1688406318990,2.55878816,1964.7,1964.4,13.13359998]
[1688406319489,5.08942,1964.9,1964.4,13.13359998]
[1688406319698,12.73775816,1964.9,1964.4,13.13359998]
[1688406324158,7.64820816,1964.9,1964.4,14.8327315]
[1688406325606,5.3159,1965.1,1964.4,14.8327315]
[1688406325607,12.54188,1965.1,1964.6,1.296]
[1688406325913,10.17739,1965.2,1964.7,12.72425]
[1688406326087,7.64746816,1965.2,1964.7,12.72425]
[1688406327920,12.73612816,1965.2,1964.7,12.72425]
[1688406328223,12.73612816,1965.2,1964.7,14.380779]
[1688406331375,12.73612816,1965.2,1964.7,15.677779]
[1688406336619,12.73612816,1965.2,1964.7,12.72425]
[1688406338006,14.36692816,1965.2,1964.7,14.37555]
[1688406338919,14.36692816,1965.2,1964.7,14.79031337]
[1688406351260,2.55878816,1965.1,1964.7,10.59416337]
[1688406351558,10.17821,1965.0,1964.7,10.59416337]
[1688406351780,11.70634982,1965.0,1964.7,10.59416337]
[1688406354087,6.61723982,1965.0,1964.7,10.59416337]
[1688406355553,5.0891,1965.0,1964.7,13.13907337]
[1688406355859,14.99458816,1965.1,1964.7,13.13907337]
[1688406362704,14.99458816,1965.1,1964.7,13.6696939]
[1688406369313,14.99458816,1965.1,1964.7,13.13907337]
[1688406370554,14.99458816,1965.1,1964.7,13.6696939]
[1688406371951,16.5834753,1965.1,1964.7,13.6696939]
[1688406372144,16.5834753,1965.1,1964.7,13.13907337]
[1688406373152,16.5834753,1965.1,1964.7,13.6696939]
[1688406373351,16.5834753,1965.1,1964.7,13.13907337]
[1688406373662,16.5834753,1965.1,1964.7,13.6696939]
[1688406374361,16.5834753,1965.1,1964.7,13.13907337]
[1688406375153,0.73592474,1965.0,1964.7,13.6696939]
[1688406375454,5.82507474,1965.0,1964.7,13.6696939]
[1688406375624,5.82507474,1965.0,1964.7,13.13907337]
[1688406378654,5.08915,1965.0,1964.7,13.13907337]
[1688406387031,10.1783,1965.0,1964.7,10.59416337]
[1688406387232,12.73708816,1965.0,1964.7,0.41476337]
[1688406387580,15.28160816,1965.0,1964.6,10.72693322]
[1688406387872,16.84800816,1965.0,1964.6,10.72693322]
[1688406388030,11.86365082,1964.9,1964.6,10.19631269]
[1688406389877,11.86365082,1964.9,1964.6,10.60429387]
[1688406390676,2.55878816,1964.8,1964.6,10.60437387]
[1688406392068,7.64837816,1964.8,1964.6,10.60437387]
[1688406394055,2.55878816,1964.8,1964.6,13.14941387]
[1688406394960,6.65555,1965.0,1964.6,13.14941387]
[1688406395190,7.64818816,1964.9,1964.6,13.14941387]
[1688406395560,12.73761816,1964.9,1964.6,13.14941387]
[1688406395887,12.73761816,1964.9,1964.6,10.60437387]
[1688406408299,15.28226816,1964.9,1964.6,5.08994]
[1688406408655,12.73761816,1964.9,1964.6,5.08994]
[1688406408860,1.27376182,1964.8,1964.6,5.08994]
[1688406409195,6.36346182,1964.8,1964.6,5.08994]
[1688406411601,11.45316182,1964.8,1964.6,5.08994]
[1688406412177,16.55672998,1964.8,1964.5,0.41069627]
[1688406412374,2.55878816,1964.7,1964.3,5.62140053]
[1688406412606,12.98119882,1964.6,1964.3,5.09078]
[1688406412913,12.99494698,1964.6,1964.3,10.18165]
[1688406413209,15.53998698,1964.6,1964.2,7.02628053]
[1688406413409,15.53998698,1964.6,1964.2,12.11741053]
[1688406413616,15.53998698,1964.6,1964.2,12.51870367]
[1688406414684,12.73906816,1964.6,1964.2,15.08062969]
[1688406415007,7.64892816,1964.6,1964.4,5.09061]
[1688406418377,7.64892816,1964.6,1964.4,4.99061]
[1688406419782,7.64892816,1964.6,1964.4,10.08122]
[1688406420522,7.64892816,1964.6,1964.4,4.99061]
[1688406421814,7.64892816,1964.6,1964.4,10.08122]
[1688406431601,7.64892816,1964.6,1964.4,10.03122]
[1688406432005,9.15236898,1964.6,1964.4,10.03122]
[1688406432897,4.06222898,1964.6,1964.4,10.03122]
[1688406433095,2.55878816,1964.6,1964.4,10.03122]
[1688406433305,2.55878816,1964.6,1964.4,10.44853388]
[1688406434012,7.64888816,1964.6,1964.4,10.44853388]
[1688406438387,2.55878816,1964.6,1964.4,10.44853388]
[1688406440000,12.47554,1964.7,1964.4,10.44853388]
[1688406440206,6.65781,1964.8,1964.4,14.27783388]
[1688406440404,14.30620816,1964.8,1964.4,14.27783388]
[1688406444390,16.22790598,1964.8,1964.4,14.27783388]
[1688406450549,16.22790598,1964.8,1964.4,12.99383388]
[1688406453656,14.65970598,1964.8,1964.4,12.99383388]
[1688406454161,5.08961,1964.8,1964.4,13.52445441]
[1688406457768,10.17922,1964.8,1964.4,13.52445441]
[1688406462196,11.89562,1964.8,1964.4,13.52445441]
[1688406464503,14.4404,1964.8,1964.4,10.97915441]
[1688406466389,5.09009,1964.6,1964.4,5.35792388]
[1688406466555,7.64887816,1964.6,1964.4,5.35792388]
[1688406466750,7.64887816,1964.6,1964.4,10.44853388]
[1688406468707,7.64887816,1964.6,1964.4,10.97915441]
[1688406469060,7.64887816,1964.6,1964.4,10.44853388]
[1688406469380,9.15531498,1964.6,1964.4,10.44853388]
[1688406471074,4.06522498,1964.6,1964.4,10.44853388]
[1688406474411,9.15537498,1964.6,1964.4,10.44853388]
[1688406478058,3.8183,1965.1,1964.5,1.82662053]
[1688406478327,5.08839,1965.3,1964.6,16.30649412]
[1688406478529,5.08839,1965.3,1964.6,17.84719412]
[1688406478530,2.55878816,1965.2,1964.6,17.84719412]
[1688406478683,2.55878816,1965.2,1964.6,17.82438023]
[1688406478883,2.55878816,1965.2,1964.7,1.30760572]
[1688406479124,2.55878816,1965.2,1965.0,10.1781]
[1688406479711,7.64734816,1965.2,1965.0,10.1781]
[1688406482689,2.55878816,1965.2,1965.0,10.1781]
[1688406482897,2.55878816,1965.2,1965.0,12.72262]
[1688406487042,2.55878816,1965.2,1965.0,10.1781]
[1688406487043,7.64733816,1965.2,1965.0,10.1781]
[1688406487212,0.76473382,1965.1,1965.0,10.1781]
[1688406487411,7.64733816,1965.2,1965.0,10.1781]
[1688406491656,2.55878816,1965.2,1965.0,12.72262]
[1688406491979,2.199,1965.3,1965.0,12.73897936]
[1688406492266,2.2169,1965.5,1965.2,12.7212]
[1688406492407,2.55878816,1965.4,1965.2,12.7212]
[1688406492612,2.55878816,1965.4,1965.3,0.00839985]
[1688406492850,2.55878816,1965.4,1965.3,12.72909985]
[1688406493012,2.55878816,1965.4,1965.3,12.7207]
[1688406493212,1.641,1965.7,1965.3,12.7207]
[1688406493412,2.55878816,1965.6,1965.3,12.7207]
[1688406495119,7.64629816,1965.6,1965.3,12.7207]
[1688406495557,15.27755816,1965.6,1965.2,5.08842]
[1688406495769,15.27755816,1965.6,1965.2,10.17684]
[1688406500827,12.73380816,1965.6,1965.2,10.17684]
[1688406501028,7.64629816,1965.6,1965.2,12.72111]
[1688406501269,17.29335068,1965.6,1965.2,5.08842]
[1688406501458,17.29335068,1965.6,1965.2,10.17696]
[1688406503606,17.29335068,1965.6,1965.2,5.08842]
[1688406503607,18.59035068,1965.6,1965.2,5.08842]
[1688406504277,18.59035068,1965.6,1965.2,10.17696]
[1688406505623,17.29335068,1965.6,1965.3,0.00713462]
[1688406505820,1.72933507,1965.5,1965.3,5.08823]
[1688406506128,2.55878816,1965.4,1965.3,5.08823]
[1688406510926,7.64680816,1965.4,1965.2,10.17684]
[1688406516933,2.55878816,1965.4,1965.2,12.72111]
[1688406520305,8.9914,1965.7,1965.2,12.7374677]
[1688406520638,3.45792816,1965.6,1965.2,12.7374677]
[1688406521622,8.54542816,1965.6,1965.2,12.7374677]
[1688406521828,3.45792816,1965.6,1965.2,12.7374677]
[1688406526784,8.54545816,1965.6,1965.2,12.7374677]
[1688406527125,13.63298816,1965.6,1965.2,12.7374677]
[1688406527356,6.45108882,1965.5,1965.2,12.7374677]
[1688406527556,9.00987698,1965.5,1965.2,12.7374677]
[1688406528859,2.55878816,1965.4,1965.2,10.1931977]
[1688406529076,2.55878816,1965.4,1965.2,10.17684]
[1688406529375,7.64682816,1965.4,1965.2,10.17684]
[1688406530483,8.78464334,1965.4,1965.2,10.17684]
[1688406531579,2.55878816,1965.4,1965.2,12.72111]
[1688406552889,2.2721,1965.5,1965.2,12.72111]
[1688406553091,2.55878816,1965.5,1965.2,12.72111]
[1688406555187,2.55878816,1965.5,1965.2,12.71772088]
[1688406555524,2.95922774,1966.0,1965.2,14.01472088]
[1688406555722,1.5994,1965.8,1965.3,0.0297335]